[Event "Titled Tuesday Blitz August 15 Early 2023"]
[White "Nenezic, Marko"]
[Black "Goncalves, Davi Sulzbacher"]
[WhiteFideId "912123"]
[BlackFideId "2154510"]
[WhiteElo "2828"]
[BlackElo "2493"]
[Result "1-0"]
[Round "3"]
[TimeControl "180+1"]
[Date "2023.08.15"]
[WhiteClock "0:01:11"]
[BlackClock "0:00:02"]
[Board "77"]

1. Nf3 {[%clk 0:03:00]}  Nf6 {[%clk 0:02:59]} 2. b3 {[%clk 0:03:01]}  d5 {[%clk 0:02:58]} 3. Bb2 {[%clk 0:03:02]}  c5 {[%clk 0:02:58]} 4. e3 {[%clk 0:03:01]}  e6 {[%clk 0:02:58]} 5. Bb5+ {[%clk 0:03:00]}  Bd7 {[%clk 0:02:58]} 6. a4 {[%clk 0:02:53]}  Be7 {[%clk 0:02:54]} 7. Ne5 {[%clk 0:02:52]}  Bxb5 {[%clk 0:02:52]} 8. axb5 {[%clk 0:02:53]}  O-O {[%clk 0:02:52]} 9. O-O {[%clk 0:02:50]}  Qb6 {[%clk 0:02:42]} 10. c4 {[%clk 0:02:49]}  a6 {[%clk 0:02:38]} 11. Nc3 {[%clk 0:02:46]}  Nbd7 {[%clk 0:02:33]} 12. Nxd7 {[%clk 0:02:40]}  Nxd7 {[%clk 0:02:33]} 13. cxd5 {[%clk 0:02:35]}  axb5 {[%clk 0:02:28]} 14. dxe6 {[%clk 0:02:35]}  fxe6 {[%clk 0:02:28]} 15. Qe2 {[%clk 0:02:26]}  Bf6 {[%clk 0:02:27]} 16. Rab1 {[%clk 0:02:23]}  Ra5 {[%clk 0:02:14]} 17. Qg4 {[%clk 0:02:08]}  Ne5 {[%clk 0:02:05]} 18. Qe4 {[%clk 0:02:08]}  Qc6 {[%clk 0:01:59]} 19. f4 {[%clk 0:02:03]}  Qxe4 {[%clk 0:01:38]} 20. Nxe4 {[%clk 0:02:02]}  Nd3 {[%clk 0:01:38]} 21. Ra1 {[%clk 0:01:46]}  Rxa1 {[%clk 0:01:22]} 22. Bxa1 {[%clk 0:01:47]}  Be7 {[%clk 0:01:00]} 23. Rb1 {[%clk 0:01:44]}  Ra8 {[%clk 0:00:55]} 24. Kf1 {[%clk 0:01:42]}  Ra2 {[%clk 0:00:28]} 25. Ke2 {[%clk 0:01:41]}  Nb4 {[%clk 0:00:28]} 26. Be5 {[%clk 0:01:27]}  Nd5 {[%clk 0:00:27]} 27. Ra1 {[%clk 0:01:18]}  Rxa1 {[%clk 0:00:24]} 28. Bxa1 {[%clk 0:01:19]}  Bf6 {[%clk 0:00:20]} 29. Bxf6 {[%clk 0:01:18]}  gxf6 {[%clk 0:00:21]} 30. Nxc5 {[%clk 0:01:18]}  Kf7 {[%clk 0:00:17]} 31. Nxb7 {[%clk 0:01:18]}  Ke7 {[%clk 0:00:18]} 32. Kd3 {[%clk 0:01:13]}  Kd7 {[%clk 0:00:18]} 33. Nc5+ {[%clk 0:01:13]}  Kd6 {[%clk 0:00:18]} 34. Ne4+ {[%clk 0:01:14]}  Kc6 {[%clk 0:00:19]} 35. g4 {[%clk 0:01:13]}  Nb4+ {[%clk 0:00:13]} 36. Kd4 {[%clk 0:01:12]}  Nd5 {[%clk 0:00:12]} 37. g5 {[%clk 0:01:11]}  f5 {[%clk 0:00:02]} 38. Nf6 {[%clk 0:01:11]} 1-0


[Site "https://www.chess.com"]

[Event "Titled Tuesday Blitz August 15 Early 2023"]
[White "Guliyev, Namig"]
[Black "Tomaszewski, Kacper"]
[WhiteFideId "13400363"]
[BlackFideId "1127373"]
[WhiteElo "2811"]
[BlackElo "2490"]
[Result "1-0"]
[Round "3"]
[TimeControl "180+1"]
[Date "2023.08.15"]
[WhiteClock "0:02:16"]
[BlackClock "0:01:15"]
[Board "80"]

1. e4 {[%clk 0:03:00]}  e6 {[%clk 0:02:55]} 2. d4 {[%clk 0:03:00]}  d5 {[%clk 0:02:55]} 3. Nc3 {[%clk 0:03:01]}  Bb4 {[%clk 0:02:55]} 4. e5 {[%clk 0:03:01]}  c5 {[%clk 0:02:55]} 5. a3 {[%clk 0:03:01]}  Ba5 {[%clk 0:02:56]} 6. b4 {[%clk 0:02:53]}  cxd4 {[%clk 0:02:56]} 7. Nb5 {[%clk 0:02:52]}  Bc7 {[%clk 0:02:53]} 8. f4 {[%clk 0:02:53]}  Bd7 {[%clk 0:02:51]} 9. Nxd4 {[%clk 0:02:43]}  Nc6 {[%clk 0:02:50]} 10. Ngf3 {[%clk 0:02:43]}  Nge7 {[%clk 0:02:47]} 11. c3 {[%clk 0:02:43]}  a6 {[%clk 0:02:45]} 12. Bd3 {[%clk 0:02:42]}  Nxd4 {[%clk 0:02:44]} 13. cxd4 {[%clk 0:02:43]}  Bb5 {[%clk 0:02:43]} 14. Bxb5+ {[%clk 0:02:42]}  axb5 {[%clk 0:02:44]} 15. Qd3 {[%clk 0:02:42]}  Qd7 {[%clk 0:02:44]} 16. O-O {[%clk 0:02:42]}  h5 {[%clk 0:02:44]} 17. Be3 {[%clk 0:02:36]}  g6 {[%clk 0:02:42]} 18. Rfc1 {[%clk 0:02:36]}  Bb6 {[%clk 0:02:41]} 19. Rc3 {[%clk 0:02:35]}  O-O {[%clk 0:02:37]} 20. Bf2 {[%clk 0:02:31]}  Rfc8 {[%clk 0:02:37]} 21. Rac1 {[%clk 0:02:30]}  Rc4 {[%clk 0:02:36]} 22. h3 {[%clk 0:02:27]}  Rxa3 {[%clk 0:02:32]} 23. Rxa3 {[%clk 0:02:25]}  Rxc1+ {[%clk 0:02:31]} 24. Kh2 {[%clk 0:02:26]}  Nc6 {[%clk 0:02:22]} 25. Qxb5 {[%clk 0:02:21]}  Qc7 {[%clk 0:01:55]} 26. Ra8+ {[%clk 0:02:19]}  Kg7 {[%clk 0:01:53]} 27. Bh4 {[%clk 0:02:19]}  g5 {[%clk 0:01:38]} 28. Bxg5 {[%clk 0:02:19]}  Rc4 {[%clk 0:01:15]} 29. Bf6+ {[%clk 0:02:16]} 1-0


[Site "https://www.chess.com"]

[Event "Titled Tuesday Blitz August 15 Early 2023"]
[White "Beerdsen, Thomas"]
[Black "Eidelman, Gabriel"]
[WhiteFideId "1030108"]
[BlackFideId "30910544"]
[WhiteElo "2803"]
[BlackElo "2489"]
[Result "1-0"]
[Round "3"]
[TimeControl "180+1"]
[Date "2023.08.15"]
[WhiteClock "0:02:26"]
[BlackClock "0:00:56"]
[Board "81"]

1. e4 {[%clk 0:03:00]}  c5 {[%clk 0:02:57]} 2. Nf3 {[%clk 0:03:00]}  Nc6 {[%clk 0:02:56]} 3. Bc4 {[%clk 0:02:59]}  e6 {[%clk 0:02:53]} 4. O-O {[%clk 0:02:59]}  d5 {[%clk 0:02:49]} 5. Bb5 {[%clk 0:03:00]}  dxe4 {[%clk 0:02:48]} 6. Ne5 {[%clk 0:03:00]}  Qc7 {[%clk 0:02:44]} 7. Nxc6 {[%clk 0:03:00]}  bxc6 {[%clk 0:02:45]} 8. Bc4 {[%clk 0:03:01]}  Nf6 {[%clk 0:02:43]} 9. Nc3 {[%clk 0:03:01]}  Bd6 {[%clk 0:02:43]} 10. Kh1 {[%clk 0:03:01]}  O-O {[%clk 0:02:41]} 11. Qe2 {[%clk 0:02:59]}  Bxh2 {[%clk 0:02:36]} 12. Nxe4 {[%clk 0:02:59]}  Nxe4 {[%clk 0:02:30]} 13. Qxe4 {[%clk 0:03:00]}  Be5 {[%clk 0:02:30]} 14. d3 {[%clk 0:02:50]}  Bf6 {[%clk 0:02:25]} 15. Bf4 {[%clk 0:02:49]}  e5 {[%clk 0:02:24]} 16. Be3 {[%clk 0:02:49]}  Qd6 {[%clk 0:02:25]} 17. a4 {[%clk 0:02:44]}  a5 {[%clk 0:02:21]} 18. g3 {[%clk 0:02:37]}  Bd7 {[%clk 0:02:17]} 19. Kg2 {[%clk 0:02:37]}  g6 {[%clk 0:02:04]} 20. Rh1 {[%clk 0:02:36]}  Bf5 {[%clk 0:02:00]} 21. Qf3 {[%clk 0:02:37]}  h5 {[%clk 0:01:58]} 22. Rxh5 {[%clk 0:02:36]}  gxh5 {[%clk 0:01:47]} 23. Qxf5 {[%clk 0:02:36]}  Bg7 {[%clk 0:01:46]} 24. Rh1 {[%clk 0:02:34]}  Ra7 {[%clk 0:01:22]} 25. Rxh5 {[%clk 0:02:24]}  Rb8 {[%clk 0:01:19]} 26. Qh7+ {[%clk 0:02:25]}  Kf8 {[%clk 0:01:19]} 27. Rg5 {[%clk 0:02:26]}  Qh6 {[%clk 0:01:08]} 28. Bxc5+ {[%clk 0:02:26]}  Ke8 {[%clk 0:00:56]} 29. Qxh6 {[%clk 0:02:26]} 1-0


[Site "https://www.chess.com"]

[Event "Titled Tuesday Blitz August 15 Early 2023"]
[White "Gurevich, Dmitry"]
[Black "Schmakel, Sam"]
[WhiteFideId "2000407"]
[BlackFideId "2039311"]
[WhiteElo "2489"]
[BlackElo "2764"]
[Result "0-1"]
[Round "3"]
[TimeControl "180+1"]
[Date "2023.08.15"]
[WhiteClock "0:00:00"]
[BlackClock "0:00:05"]
[Board "83"]

1. d4 {[%clk 0:02:52]}  Nf6 {[%clk 0:02:57]} 2. c4 {[%clk 0:02:51]}  a6 {[%clk 0:02:57]} 3. f3 {[%clk 0:02:45]}  c5 {[%clk 0:02:52]} 4. d5 {[%clk 0:02:45]}  b5 {[%clk 0:02:52]} 5. e4 {[%clk 0:02:45]}  d6 {[%clk 0:02:46]} 6. a4 {[%clk 0:02:35]}  b4 {[%clk 0:02:44]} 7. b3 {[%clk 0:02:33]}  g6 {[%clk 0:02:43]} 8. Bb2 {[%clk 0:02:33]}  Bg7 {[%clk 0:02:43]} 9. Nd2 {[%clk 0:02:32]}  O-O {[%clk 0:02:38]} 10. Qc2 {[%clk 0:02:32]}  e5 {[%clk 0:02:31]} 11. h4 {[%clk 0:02:26]}  Nh5 {[%clk 0:02:28]} 12. Ne2 {[%clk 0:02:20]}  f5 {[%clk 0:02:28]} 13. O-O-O {[%clk 0:02:16]}  a5 {[%clk 0:02:03]} 14. Kb1 {[%clk 0:02:15]}  f4 {[%clk 0:01:52]} 15. Nc1 {[%clk 0:01:54]}  Ng3 {[%clk 0:01:45]} 16. Rh2 {[%clk 0:01:50]}  Nd7 {[%clk 0:01:46]} 17. Bd3 {[%clk 0:01:48]}  Nf6 {[%clk 0:01:25]} 18. Ne2 {[%clk 0:01:46]}  Nfh5 {[%clk 0:01:25]} 19. Nf1 {[%clk 0:01:41]}  Bf6 {[%clk 0:01:14]} 20. Bc1 {[%clk 0:01:31]}  Bxh4 {[%clk 0:01:13]} 21. Bd2 {[%clk 0:01:31]}  Nxe2 {[%clk 0:00:51]} 22. Bxe2 {[%clk 0:01:30]}  Ng3 {[%clk 0:00:52]} 23. Bd3 {[%clk 0:01:19]}  Nxf1 {[%clk 0:00:49]} 24. Bxf1 {[%clk 0:01:18]}  Bg3 {[%clk 0:00:49]} 25. Rh1 {[%clk 0:01:16]}  h5 {[%clk 0:00:44]} 26. Be1 {[%clk 0:01:11]}  Qg5 {[%clk 0:00:36]} 27. Qe2 {[%clk 0:01:06]}  Ra7 {[%clk 0:00:35]} 28. Bxg3 {[%clk 0:01:03]}  Qxg3 {[%clk 0:00:35]} 29. Qe1 {[%clk 0:01:00]}  Qxe1 {[%clk 0:00:34]} 30. Rxe1 {[%clk 0:01:00]}  Rh7 {[%clk 0:00:28]} 31. Rh2 {[%clk 0:00:58]}  g5 {[%clk 0:00:27]} 32. Be2 {[%clk 0:00:58]}  Kg7 {[%clk 0:00:26]} 33. Reh1 {[%clk 0:00:58]}  Kg6 {[%clk 0:00:27]} 34. Kc2 {[%clk 0:00:57]}  Rff7 {[%clk 0:00:26]} 35. Kd2 {[%clk 0:00:57]}  g4 {[%clk 0:00:24]} 36. Rh4 {[%clk 0:00:54]}  g3 {[%clk 0:00:09]} 37. Ke1 {[%clk 0:00:54]}  Rh6 {[%clk 0:00:09]} 38. Kd2 {[%clk 0:00:54]}  Rfh7 {[%clk 0:00:10]} 39. Kc2 {[%clk 0:00:53]}  Kg5 {[%clk 0:00:10]} 40. Kd2 {[%clk 0:00:51]}  Rg7 {[%clk 0:00:10]} 41. Ke1 {[%clk 0:00:50]}  Bd7 {[%clk 0:00:11]} 42. Bd1 {[%clk 0:00:47]}  Be8 {[%clk 0:00:11]} 43. Kf1 {[%clk 0:00:46]}  Kf6 {[%clk 0:00:10]} 44. Kg1 {[%clk 0:00:44]}  Rgh7 {[%clk 0:00:10]} 45. Kf1 {[%clk 0:00:43]}  Kg5 {[%clk 0:00:11]} 46. Kg1 {[%clk 0:00:43]}  Bg6 {[%clk 0:00:11]} 47. Bc2 {[%clk 0:00:40]}  Rb7 {[%clk 0:00:11]} 48. Kf1 {[%clk 0:00:38]}  Be8 {[%clk 0:00:11]} 49. Ke2 {[%clk 0:00:34]}  Bxa4 {[%clk 0:00:07]} 50. bxa4 {[%clk 0:00:32]}  b3 {[%clk 0:00:08]} 51. Bd3 {[%clk 0:00:29]}  Rb4 {[%clk 0:00:06]} 52. R4h3 {[%clk 0:00:25]}  Rxa4 {[%clk 0:00:06]} 53. Rb1 {[%clk 0:00:25]}  Rb4 {[%clk 0:00:06]} 54. Rhh1 {[%clk 0:00:19]}  Rh8 {[%clk 0:00:06]} 55. Ra1 {[%clk 0:00:19]}  a4 {[%clk 0:00:05]} 56. Ra3 {[%clk 0:00:19]}  h4 {[%clk 0:00:05]} 57. Kd2 {[%clk 0:00:15]}  Rhb8 {[%clk 0:00:02]} 58. Kc3 {[%clk 0:00:13]}  b2 {[%clk 0:00:02]} 59. Rb1 {[%clk 0:00:09]}  h3 {[%clk 0:00:02]} 60. gxh3 {[%clk 0:00:08]}  g2 {[%clk 0:00:02]} 61. Bc2 {[%clk 0:00:07]}  Kh4 {[%clk 0:00:02]} 62. Rxa4 {[%clk 0:00:06]}  Rxa4 {[%clk 0:00:02]} 63. Bxa4 {[%clk 0:00:06]}  Kxh3 {[%clk 0:00:03]} 64. Bb5 {[%clk 0:00:06]}  Kh2 {[%clk 0:00:03]} 65. Kxb2 {[%clk 0:00:06]}  g1=Q {[%clk 0:00:04]} 66. Rxg1 {[%clk 0:00:06]}  Kxg1 {[%clk 0:00:04]} 67. Kb3 {[%clk 0:00:00]}  Kf2 {[%clk 0:00:05]} 0-1


[Site "https://www.chess.com"]

[Event "Titled Tuesday Blitz August 15 Early 2023"]
[White "Marn, Jan"]
[Black "Hambleton, Aman"]
[WhiteFideId "14619245"]
[BlackFideId "2606577"]
[WhiteElo "2487"]
[BlackElo "2756"]
[Result "0-1"]
[Round "3"]
[TimeControl "180+1"]
[Date "2023.08.15"]
[WhiteClock "0:00:00"]
[BlackClock "0:00:06"]
[Board "84"]

1. f4 {[%clk 0:03:00]}  d5 {[%clk 0:02:55]} 2. Nf3 {[%clk 0:03:00]}  Nh6 {[%clk 0:02:55]} 3. e3 {[%clk 0:02:57]}  Bg4 {[%clk 0:02:52]} 4. Be2 {[%clk 0:02:52]}  Nd7 {[%clk 0:02:29]} 5. b3 {[%clk 0:02:52]}  e6 {[%clk 0:02:12]} 6. Bb2 {[%clk 0:02:52]}  Nf5 {[%clk 0:02:10]} 7. O-O {[%clk 0:02:18]}  c6 {[%clk 0:01:46]} 8. h3 {[%clk 0:02:03]}  Bxf3 {[%clk 0:01:44]} 9. Bxf3 {[%clk 0:02:03]}  h5 {[%clk 0:01:29]} 10. Qe1 {[%clk 0:01:25]}  h4 {[%clk 0:01:11]} 11. Kh2 {[%clk 0:01:25]}  Bd6 {[%clk 0:00:50]} 12. Bg4 {[%clk 0:01:25]}  Ng3 {[%clk 0:00:39]} 13. Rf2 {[%clk 0:01:20]}  Nf6 {[%clk 0:00:35]} 14. Nc3 {[%clk 0:00:47]}  e5 {[%clk 0:00:19]} 15. Ne2 {[%clk 0:00:36]}  exf4 {[%clk 0:00:11]} 16. Rxf4 {[%clk 0:00:10]}  Nxe2 {[%clk 0:00:06]} 17. Qxe2 {[%clk 0:00:09]}  g5 {[%clk 0:00:06]} 18. Kh1 {[%clk 0:00:03]}  gxf4 {[%clk 0:00:07]} 19. exf4+ {[%clk 0:00:04]}  Kf8 {[%clk 0:00:07]} 20. Re1 {[%clk 0:00:00]}  Rh6 {[%clk 0:00:06]} 0-1


[Site "https://www.chess.com"]

[Event "Titled Tuesday Blitz August 15 Early 2023"]
[White "Ankerst, Mihael"]
[Black "Stribuk, Artiom"]
[WhiteFideId "14602369"]
[BlackFideId "13515659"]
[WhiteElo "2480"]
[BlackElo "2737"]
[Result "0-1"]
[Round "3"]
[TimeControl "180+1"]
[Date "2023.08.15"]
[WhiteClock "0:00:00"]
[BlackClock "0:01:43"]
[Board "86"]

1. e4 {[%clk 0:02:52]}  c5 {[%clk 0:02:59]} 2. Nf3 {[%clk 0:02:51]}  d6 {[%clk 0:02:59]} 3. d4 {[%clk 0:02:51]}  cxd4 {[%clk 0:02:59]} 4. Nxd4 {[%clk 0:02:52]}  Nf6 {[%clk 0:02:58]} 5. Nc3 {[%clk 0:02:52]}  g6 {[%clk 0:02:59]} 6. f4 {[%clk 0:02:52]}  Bg7 {[%clk 0:02:58]} 7. e5 {[%clk 0:02:53]}  Nh5 {[%clk 0:02:33]} 8. Bb5+ {[%clk 0:02:52]}  Bd7 {[%clk 0:02:33]} 9. exd6 {[%clk 0:02:52]}  O-O {[%clk 0:02:32]} 10. dxe7 {[%clk 0:02:52]}  Qxe7+ {[%clk 0:02:23]} 11. Qe2 {[%clk 0:02:52]}  Qb4 {[%clk 0:02:10]} 12. Bxd7 {[%clk 0:01:42]}  Bxd4 {[%clk 0:02:08]} 13. Bg4 {[%clk 0:01:25]}  Bxc3+ {[%clk 0:02:08]} 14. bxc3 {[%clk 0:01:25]}  Qxc3+ {[%clk 0:02:09]} 15. Kf2 {[%clk 0:01:24]}  Qxa1 {[%clk 0:02:07]} 16. Bxh5 {[%clk 0:01:24]}  gxh5 {[%clk 0:02:08]} 17. Rd1 {[%clk 0:00:40]}  Nc6 {[%clk 0:01:59]} 18. Qxh5 {[%clk 0:00:24]}  Rad8 {[%clk 0:01:59]} 19. Re1 {[%clk 0:00:10]}  Rfe8 {[%clk 0:01:56]} 20. Be3 {[%clk 0:00:10]}  Qg7 {[%clk 0:01:50]} 21. c3 {[%clk 0:00:10]}  Rd6 {[%clk 0:01:48]} 22. Qf3 {[%clk 0:00:10]}  Rde6 {[%clk 0:01:48]} 23. Bd2 {[%clk 0:00:09]}  Rxe1 {[%clk 0:01:43]} 24. Bxe1 {[%clk 0:00:10]}  f5 {[%clk 0:01:43]} 25. h3 {[%clk 0:00:09]}  h6 {[%clk 0:01:43]} 26. g4 {[%clk 0:00:09]}  Kh7 {[%clk 0:01:43]} 27. Bd2 {[%clk 0:00:09]}  Qd7 {[%clk 0:01:43]} 28. Be3 {[%clk 0:00:09]}  Qd3 {[%clk 0:01:43]} 29. gxf5 {[%clk 0:00:08]}  Qxe3+ {[%clk 0:01:41]} 30. Qxe3 {[%clk 0:00:08]}  Rxe3 {[%clk 0:01:42]} 31. Kxe3 {[%clk 0:00:08]}  Kg7 {[%clk 0:01:43]} 32. Ke4 {[%clk 0:00:06]}  Kf6 {[%clk 0:01:44]} 33. h4 {[%clk 0:00:02]}  h5 {[%clk 0:01:44]} 34. a3 {[%clk 0:00:00]}  Na5 {[%clk 0:01:43]} 0-1


[Site "https://www.chess.com"]

[Event "Titled Tuesday Blitz August 15 Early 2023"]
[White "Shuvalov, Evgenij"]
[Black "Akobian, Varuzhan"]
[WhiteFideId "4187237"]
[BlackFideId "13300580"]
[WhiteElo "2473"]
[BlackElo "2712"]
[Result "0-1"]
[Round "3"]
[TimeControl "180+1"]
[Date "2023.08.15"]
[WhiteClock "0:00:00"]
[BlackClock "0:00:07"]
[Board "91"]

1. d4 {[%clk 0:03:00]}  e6 {[%clk 0:03:00]} 2. c4 {[%clk 0:02:59]}  f5 {[%clk 0:02:59]} 3. g3 {[%clk 0:02:57]}  Nf6 {[%clk 0:02:59]} 4. Bg2 {[%clk 0:02:57]}  d5 {[%clk 0:02:59]} 5. Nd2 {[%clk 0:02:53]}  c6 {[%clk 0:02:58]} 6. Nh3 {[%clk 0:02:53]}  Bd6 {[%clk 0:02:58]} 7. O-O {[%clk 0:02:52]}  O-O {[%clk 0:02:58]} 8. Qc2 {[%clk 0:02:50]}  Qe7 {[%clk 0:02:57]} 9. Nf3 {[%clk 0:02:50]}  Nbd7 {[%clk 0:02:51]} 10. Nf4 {[%clk 0:02:48]}  Ne4 {[%clk 0:02:50]} 11. b3 {[%clk 0:02:42]}  Ndf6 {[%clk 0:02:39]} 12. Nd3 {[%clk 0:02:36]}  Bd7 {[%clk 0:02:37]} 13. Bf4 {[%clk 0:02:30]}  Be8 {[%clk 0:02:36]} 14. Bxd6 {[%clk 0:02:28]}  Qxd6 {[%clk 0:02:36]} 15. e3 {[%clk 0:02:12]}  Bh5 {[%clk 0:02:31]} 16. Nfe5 {[%clk 0:02:10]}  Nd7 {[%clk 0:02:30]} 17. f3 {[%clk 0:02:06]}  Nef6 {[%clk 0:02:30]} 18. Qb2 {[%clk 0:01:51]}  Qe7 {[%clk 0:02:28]} 19. Rae1 {[%clk 0:01:47]}  Nxe5 {[%clk 0:02:27]} 20. Nxe5 {[%clk 0:01:44]}  Nd7 {[%clk 0:02:27]} 21. Nd3 {[%clk 0:01:43]}  Qd6 {[%clk 0:02:20]} 22. c5 {[%clk 0:01:29]}  Qe7 {[%clk 0:02:15]} 23. b4 {[%clk 0:01:28]}  a6 {[%clk 0:02:12]} 24. a4 {[%clk 0:01:28]}  h6 {[%clk 0:01:48]} 25. Nf4 {[%clk 0:01:15]}  Bf7 {[%clk 0:01:43]} 26. e4 {[%clk 0:01:15]}  Qf6 {[%clk 0:01:32]} 27. exd5 {[%clk 0:00:58]}  exd5 {[%clk 0:01:31]} 28. Nd3 {[%clk 0:00:57]}  Rfe8 {[%clk 0:01:26]} 29. f4 {[%clk 0:00:55]}  Rxe1 {[%clk 0:00:53]} 30. Rxe1 {[%clk 0:00:56]}  Qd8 {[%clk 0:00:52]} 31. Bh3 {[%clk 0:00:44]}  g6 {[%clk 0:00:51]} 32. Ne5 {[%clk 0:00:41]}  Nf6 {[%clk 0:00:51]} 33. b5 {[%clk 0:00:18]}  axb5 {[%clk 0:00:48]} 34. axb5 {[%clk 0:00:19]}  Qa5 {[%clk 0:00:38]} 35. Rb1 {[%clk 0:00:17]}  Be8 {[%clk 0:00:30]} 36. bxc6 {[%clk 0:00:15]}  bxc6 {[%clk 0:00:29]} 37. Bg2 {[%clk 0:00:10]}  Qa4 {[%clk 0:00:23]} 38. Kh1 {[%clk 0:00:09]}  Ra5 {[%clk 0:00:12]} 39. Bf3 {[%clk 0:00:09]}  Rb5 {[%clk 0:00:12]} 40. Qc1 {[%clk 0:00:07]}  Rxb1 {[%clk 0:00:10]} 41. Qxb1 {[%clk 0:00:08]}  Qxd4 {[%clk 0:00:11]} 42. Qb6 {[%clk 0:00:06]}  Qf2 {[%clk 0:00:09]} 43. h3 {[%clk 0:00:02]}  Qxg3 {[%clk 0:00:07]} 44. Qc7 {[%clk 0:00:01]}  Qxh3+ {[%clk 0:00:06]} 45. Kg1 {[%clk 0:00:00]}  Qg3+ {[%clk 0:00:07]} 0-1


[Site "https://www.chess.com"]

[Event "Titled Tuesday Blitz August 15 Early 2023"]
[White "Yashmetov, Mikhail"]
[Black "Korchmar, Vasiliy"]
[WhiteFideId "24198900"]
[BlackFideId "24131750"]
[WhiteElo "2471"]
[BlackElo "2710"]
[Result "1-0"]
[Round "3"]
[TimeControl "180+1"]
[Date "2023.08.15"]
[WhiteClock "0:00:04"]
[BlackClock "0:00:52"]
[Board "92"]

1. d4 {[%clk 0:03:00]}  Nf6 {[%clk 0:02:58]} 2. c4 {[%clk 0:03:00]}  c6 {[%clk 0:02:58]} 3. Nf3 {[%clk 0:03:00]}  d5 {[%clk 0:02:58]} 4. g3 {[%clk 0:02:56]}  g6 {[%clk 0:02:56]} 5. Bg2 {[%clk 0:02:56]}  Bg7 {[%clk 0:02:57]} 6. O-O {[%clk 0:02:57]}  O-O {[%clk 0:02:57]} 7. Qb3 {[%clk 0:02:57]}  a5 {[%clk 0:02:56]} 8. cxd5 {[%clk 0:02:46]}  a4 {[%clk 0:02:56]} 9. Qd1 {[%clk 0:02:46]}  cxd5 {[%clk 0:02:56]} 10. Nc3 {[%clk 0:02:45]}  Nc6 {[%clk 0:02:57]} 11. Nxa4 {[%clk 0:02:22]}  Ne4 {[%clk 0:02:57]} 12. Nc3 {[%clk 0:02:17]}  Qa5 {[%clk 0:02:48]} 13. Qb3 {[%clk 0:01:50]}  Be6 {[%clk 0:02:34]} 14. e3 {[%clk 0:01:43]}  Qa6 {[%clk 0:02:26]} 15. Nd2 {[%clk 0:01:36]}  Na5 {[%clk 0:02:23]} 16. Qb4 {[%clk 0:01:27]}  Nxc3 {[%clk 0:02:14]} 17. bxc3 {[%clk 0:01:26]}  Bf6 {[%clk 0:02:08]} 18. Rb1 {[%clk 0:01:20]}  Rfc8 {[%clk 0:02:05]} 19. e4 {[%clk 0:01:14]}  dxe4 {[%clk 0:01:45]} 20. Nxe4 {[%clk 0:01:13]}  Bxa2 {[%clk 0:01:45]} 21. Ra1 {[%clk 0:00:53]}  Nb3 {[%clk 0:01:43]} 22. Nxf6+ {[%clk 0:00:21]}  exf6 {[%clk 0:01:38]} 23. Bxb7 {[%clk 0:00:20]}  Qe2 {[%clk 0:01:28]} 24. Bxc8 {[%clk 0:00:14]}  Rxc8 {[%clk 0:01:29]} 25. Qb7 {[%clk 0:00:09]}  Rxc3 {[%clk 0:01:22]} 26. Bh6 {[%clk 0:00:06]}  Qe6 {[%clk 0:00:57]} 27. Rxa2 {[%clk 0:00:04]}  Rc8 {[%clk 0:00:52]} 28. Ra8 {[%clk 0:00:04]} 1-0


[Site "https://www.chess.com"]